bitfinex-derivatives/quotes_ETHF0:USTF0_20241007
["timestamp","ask_amount","ask_price","bid_price","bid_amount"]
[1728307154425,4.44673,2474.0,2473.9,0.4043]
[1728307155133,0.40433,2474.0,2473.9,0.4043]
[1728307155429,0.40433,2474.0,2473.7,3.2078]
[1728307155430,0.40432,2473.9,2473.8,0.4064]
[1728307155735,0.40433,2473.8,2473.7,3.61214]
[1728307157042,0.40432,2474.0,2473.9,0.4043]
[1728307157236,1.39523,2474.1,2473.7,4.21866]
[1728307157237,0.3845,2474.1,2473.7,4.21866]
[1728307157439,0.7888,2474.1,2474.0,0.4043]
[1728307158428,0.7888,2474.1,2474.0,4.0328]
[1728307158837,0.40426,2474.4,2474.3,0.40423]
[1728307159034,0.40428,2474.2,2474.0,3.6285]
[1728307159333,0.40428,2474.2,2474.1,0.40427]
[1728307159735,0.3947,2474.4,2474.0,3.6285]
[1728307159934,0.40426,2474.3,2474.2,0.40426]
[1728307160130,0.3947,2474.4,2474.1,3.16]
[1728307160336,0.40423,2474.5,2474.4,0.40422]
[1728307160536,0.40422,2474.5,2474.4,0.4054]
[1728307160746,0.79962,2474.5,2474.4,0.4054]
[1728307161135,0.79962,2474.5,2474.4,0.80963]
[1728307161336,0.79962,2474.5,2474.4,0.4054]
[1728307161532,0.40428,2474.1,2474.0,3.7225]
[1728307161737,0.40428,2474.1,2474.0,3.2078]
[1728307162841,0.79968,2474.1,2474.0,3.2078]
[1728307163439,0.40433,2473.8,2473.7,0.49835]
[1728307163742,0.40433,2473.8,2473.7,0.40435]
[1728307163946,1.01078,2474.0,2473.6,0.816]
[1728307164151,0.40435,2473.7,2473.6,1.22036]
[1728307164942,1.41483,2473.9,2473.5,3.61216]
[1728307164943,0.40437,2473.6,2473.5,3.61216]
[1728307167046,0.4073,2473.7,2473.5,3.2078]
[1728307167240,0.40437,2473.6,2473.5,3.61217]
[1728307167448,0.81166,2473.7,2473.6,0.40437]
[1728307167640,0.4073,2473.7,2473.5,3.2078]
[1728307167840,0.81165,2473.7,2473.6,0.40437]
[1728307168048,0.40434,2473.8,2473.7,0.40433]
[1728307168245,0.7803,2474.2,2473.7,1.42747]
[1728307168447,0.40429,2474.1,2474.0,0.40429]
[1728307168741,0.4043,2474.0,2473.9,0.81431]
[1728307169945,1.79099,2474.2,2473.9,0.41]
[1728307170143,0.4043,2474.0,2473.9,0.81431]
[1728307171234,1.40829,2474.2,2473.9,0.41]
[1728307171644,0.3976,2474.2,2474.1,0.40428]
[1728307171836,0.3976,2474.2,2473.9,3.57]
[1728307172038,0.80187,2474.2,2474.1,0.40428]
[1728307173146,0.4205,2474.4,2473.9,3.57]
[1728307173348,0.40426,2474.3,2474.2,0.40426]
[1728307173851,0.40426,2474.3,2474.2,0.79186]
[1728307174855,0.40424,2474.4,2474.3,0.40423]
[1728307175043,0.40424,2474.4,2474.1,3.2078]
[1728307175044,0.40427,2474.2,2474.1,3.2078]
[1728307175239,1.01065,2474.3,2473.9,0.7976]
[1728307175440,0.40428,2474.2,2474.1,0.40427]
[1728307175644,3.5704,2474.5,2473.9,0.7976]
[1728307175846,0.40428,2474.2,2474.1,0.40427]
[1728307176846,4.0416,2474.2,2473.9,0.7976]
[1728307177045,4.0416,2474.2,2473.9,1.20191]
[1728307177046,0.4043,2474.0,2473.9,1.20191]
[1728307177257,0.4043,2474.0,2473.9,0.7976]
[1728307177742,0.40426,2474.3,2474.2,0.40426]
[1728307177946,0.40426,2474.3,2474.2,3.2078]
[1728307178147,0.40431,2474.0,2473.9,0.4043]
[1728307178446,0.40429,2474.1,2474.0,0.40428]
[1728307182157,0.4043,2474.0,2473.9,0.4043]
[1728307182351,0.4043,2474.1,2474.0,0.40428]
[1728307183055,0.78947,2474.2,2474.1,0.40428]
[1728307187361,4.83107,2474.2,2474.1,0.40428]
[1728307187854,4.83107,2474.2,2473.9,3.2078]
[1728307187855,4.4268,2474.2,2473.9,3.2078]
[1728307188054,0.40433,2473.9,2473.8,0.40432]
[1728307188255,0.3852,2474.2,2473.9,0.4043]
[1728307188256,0.40431,2474.0,2473.9,0.4043]
[1728307189355,0.40429,2474.1,2474.0,0.40429]
[1728307189658,0.40429,2474.1,2474.0,0.40428]
[1728307189850,0.78948,2474.2,2474.1,0.40428]
[1728307190961,0.3852,2474.2,2474.1,3.61208]
[1728307191157,0.40426,2474.4,2474.3,0.40424]
[1728307192248,0.40426,2474.4,2474.3,0.82444]
[1728307192960,1.43121,2474.6,2474.3,0.4202]
[1728307193263,0.40423,2474.4,2474.3,0.82443]
[1728307194361,0.40423,2474.5,2474.4,0.40422]
[1728307200469,0.4207,2474.6,2474.3,0.4202]
[1728307200671,0.40423,2474.4,2474.3,0.82444]
[1728307200871,3.16,2474.5,2473.8,1.55474367]
[1728307201172,0.40432,2473.9,2473.8,0.40433]
[1728307201377,0.40432,2473.9,2473.8,0.81173]
[1728307201567,0.81082,2473.9,2473.8,0.81173]
[1728307201965,0.81082,2473.9,2473.8,0.4074]
[1728307202664,0.40433,2473.8,2473.7,3.5992]
[1728307202970,0.40433,2473.8,2473.7,0.3914]
[1728307203669,1.01087,2473.8,2473.4,3.2078]
[1728307203867,0.79211468,2473.8,2473.4,6.3678]
[1728307204065,0.4065,2473.9,2473.4,6.3678]
[1728307204268,0.40434,2473.8,2473.7,0.40434]
[1728307204463,0.4065,2473.9,2473.6,3.16]
[1728307204666,0.40432,2474.0,2473.9,0.40431]
[1728307205075,0.40432,2474.0,2473.9,0.79561]
[1728307205873,0.40432,2474.0,2473.9,0.3913]
[1728307206169,0.40432,2474.0,2473.9,0.79562]
[1728307206676,0.40432,2474.0,2473.9,0.3913]
[1728307206878,0.40432,2474.0,2473.9,0.79562]
[1728307207067,0.40432,2474.0,2473.9,0.3913]
[1728307207371,0.40433,2473.8,2473.7,3.2078]
[1728307207862,0.40433,2473.8,2473.7,3.61215]
[1728307208061,0.40433,2473.8,2473.7,3.2078]
[1728307208269,0.40433,2473.8,2473.7,3.61215]
[1728307208465,0.40433,2473.8,2473.7,3.2078]
[1728307208871,1.43374,2474.1,2473.7,3.2078]
[1728307209067,0.40431,2474.0,2473.9,3.5643]
[1728307209271,0.82729,2474.1,2474.0,0.4043]
[1728307209476,0.82729,2474.1,2474.0,0.3904]
[1728307209668,0.40433,2473.8,2473.7,6.77214]
[1728307209973,0.40433,2473.9,2473.8,0.40432]
[1728307210368,1.01076,2474.0,2473.7,6.7582]
[1728307210575,0.40433,2473.8,2473.7,7.16254]
[1728307210775,0.423,2474.1,2473.7,6.7582]
[1728307211080,1.01065,2474.3,2473.9,3.16]
[1728307211266,0.40428,2474.1,2474.0,0.3907]
[1728307211771,0.40428,2474.1,2474.0,0.795]
[1728307211978,0.40428,2474.1,2474.0,3.5985]
[1728307213278,0.40428,2474.1,2474.0,4.0028]
[1728307213472,0.40428,2474.1,2474.0,3.5985]
[1728307214375,0.40428,2474.1,2474.0,3.2078]
[1728307215475,0.40428,2474.1,2474.0,3.6121]
[1728307215674,0.40428,2474.1,2474.0,3.2078]
[1728307215879,4.44588,2474.1,2474.0,3.2078]
[1728307216180,5.23789213,2474.1,2474.0,3.2078]
[1728307216774,5.23789213,2474.1,2474.0,3.6121]
[1728307216775,1.19629213,2474.1,2474.0,3.6121]
[1728307217072,0.4204,2474.3,2474.1,0.40427]
[1728307217073,0.40427,2474.2,2474.1,0.40427]
[1728307217272,0.40423,2474.5,2474.4,0.40422]
[1728307217475,1.40891,2474.7,2474.1,3.16]
[1728307217476,0.40423,2474.4,2474.3,3.61205]
[1728307217667,0.40423,2474.5,2474.4,0.40423]
[1728307217871,0.40423,2474.4,2474.3,3.61204]
[1728307218274,0.40423,2474.5,2474.4,0.40423]
[1728307218476,0.40423,2474.4,2474.3,3.61204]
[1728307218678,0.40422,2474.5,2474.4,0.40423]
[1728307218879,0.3857,2474.6,2474.3,3.2078]
[1728307219079,0.40422,2474.5,2474.4,0.40422]
[1728307219278,0.3857,2474.6,2474.4,0.40422]
[1728307219682,0.40423,2474.5,2474.3,3.61204]
[1728307219882,0.40423,2474.5,2474.4,0.40423]
[1728307220183,0.78991,2474.6,2474.3,3.2078]
[1728307220377,0.78991,2474.6,2474.5,0.40422]
[1728307220378,0.3857,2474.6,2474.5,0.40422]
[1728307220579,0.7899,2474.6,2474.5,0.40422]
[1728307220775,0.40422,2474.5,2474.4,0.40423]
[1728307221181,0.3857,2474.6,2474.2,0.7806]
[1728307221682,0.40425,2474.3,2474.2,0.7806]
[1728307221884,0.40425,2474.3,2474.2,0.3895]
[1728307222283,0.40425,2474.3,2474.2,0.79377]
[1728307224584,0.3857,2474.6,2474.5,0.40422]
[1728307224884,0.7899,2474.6,2474.5,0.40422]
[1728307225680,0.7899,2474.6,2474.5,0.78972]
[1728307226578,0.3857,2474.6,2474.4,3.2078]
[1728307226785,0.3857,2474.6,2474.3,0.78973]
[1728307226786,0.40425,2474.4,2474.3,0.78973]
[1728307227292,0.40423,2474.5,2474.4,0.40422]
[1728307228195,1.39624,2474.6,2474.3,0.3855]
[1728307228384,0.40423,2474.4,2474.3,0.78974]
[1728307228785,0.40423,2474.5,2474.4,0.40423]
[1728307229387,0.40423,2474.4,2474.3,0.3855]
[1728307229800,0.78991,2474.6,2474.5,0.40422]
[1728307233086,1.81851,2474.9,2474.7,0.40417]
[1728307233087,0.40418,2474.8,2474.7,0.40417]
[1728307233491,1.01039,2474.9,2474.4,3.6233]
[1728307233793,0.40422,2474.6,2474.5,0.4042]
[1728307234291,0.40422,2474.6,2474.4,3.6233]
[1728307234292,0.40422,2474.5,2474.4,3.6233]
[1728307234690,0.40422,2474.5,2474.4,3.2078]
[1728307239099,0.40422,2474.5,2474.4,3.6238]
[1728307239691,0.40422,2474.5,2474.4,3.2078]
[1728307241000,0.4043,2474.0,2473.9,0.094]
[1728307241200,0.40432,2473.9,2473.8,0.8214]
[1728307242103,0.40432,2473.9,2473.8,1.22573]
[1728307242298,0.40432,2473.9,2473.8,0.8214]
[1728307243299,1.01084,2473.8,2473.4,0.40439]
[1728307243501,0.40438,2473.5,2473.4,1.61849]
[1728307243702,0.40438,2473.5,2473.4,1.2141]
[1728307244495,0.40438,2473.5,2473.4,0.424]
[1728307244705,0.40438,2473.5,2473.4,0.8284]
[1728307245105,0.40438,2473.6,2473.5,0.40437]
[1728307245407,1.01088,2473.7,2473.4,0.424]
[1728307245614,0.40438,2473.5,2473.4,0.424]
[1728307245799,0.40438,2473.5,2473.4,0.8284]
[1728307246401,1.01088,2473.7,2473.4,4.4672]
[1728307246609,0.40438,2473.6,2473.5,0.40437]
[1728307246904,0.3907,2473.8,2473.4,0.424]
[1728307247108,0.40438,2473.6,2473.5,0.40437]
[1728307247304,0.3907,2473.8,2473.5,3.16]
[1728307247505,0.3907,2473.8,2473.4,0.424]
[1728307247506,0.40434,2473.8,2473.7,3.56433]
[1728307247802,0.40433,2473.8,2473.7,7.60674]
[1728307248191,1.01076,2474.0,2473.6,4.01306]
[1728307248192,0.40435,2473.7,2473.6,4.01306]
[1728307248603,0.40435,2473.7,2473.6,8.05546]
[1728307248801,0.40435,2473.7,2473.6,7.6511]
[1728307249098,0.40435,2473.7,2473.6,8.05547]
[1728307249498,0.40435,2473.7,2473.6,4.01307]
[1728307251901,0.81465,2473.8,2473.7,0.40435]
[1728307252797,0.40435,2473.8,2473.7,0.40435]
[1728307253202,0.40433,2473.8,2473.7,3.56433]
[1728307253510,0.40433,2473.8,2473.7,7.60673]
[1728307253896,0.40433,2473.9,2473.8,0.40432]
[1728307254104,0.40433,2473.9,2473.8,0.81202]
[1728307254298,0.40433,2473.9,2473.8,4.85442]
[1728307254496,3.9796,2474.5,2473.8,4.4501]
[1728307254497,1.83016,2474.5,2473.8,4.4501]
[1728307254696,0.40427,2474.2,2474.1,3.2078]
[1728307255801,1.01063,2474.3,2473.9,0.4223]
[1728307256003,0.4043,2474.0,2473.9,0.4223]
[1728307256404,3.16,2474.3,2473.7,3.2078]
[1728307256610,0.40433,2473.8,2473.7,3.61215]
[1728307256906,0.40433,2473.8,2473.7,3.2078]
[1728307257105,0.40433,2473.8,2473.7,3.61215]
[1728307259505,0.40433,2473.8,2473.7,3.2078]
[1728307259910,0.40433,2473.8,2473.7,3.61215]
[1728307260212,0.4243,2473.9,2473.7,3.2078]
[1728307260420,1.01072,2474.1,2473.8,3.16]
[1728307260709,0.40428,2474.1,2474.0,3.2078]
[1728307261814,0.40428,2474.1,2473.7,3.2078]
[1728307261815,3.16,2474.1,2473.7,3.2078]
[1728307262113,0.82671,2474.0,2473.9,0.40432]
[1728307263512,0.40433,2473.9,2473.8,0.40432]
[1728307264105,0.82672,2474.0,2473.9,0.40432]
[1728307264304,0.82672,2474.0,2473.7,4.0173]
[1728307264609,0.40433,2473.8,2473.7,4.42164]
[1728307265913,0.40433,2473.8,2473.7,4.0173]
[1728307266112,3.16,2473.9,2473.5,0.40437]
[1728307266316,0.4224,2474.0,2473.4,7.4918]
[1728307266317,0.40438,2473.5,2473.4,5.4095]
[1728307266503,0.40438,2473.5,2473.4,1.6239]
[1728307266811,0.80758,2473.5,2473.4,1.6239]
[1728307267510,0.40436,2473.7,2473.6,0.40436]
[1728307268110,0.40438,2473.6,2473.5,0.40437]
[1728307268307,0.40438,2473.5,2473.4,4.83169]
[1728307268510,0.40438,2473.5,2473.4,4.4252]
[1728307270612,0.40438,2473.5,2473.4,1.2174]
[1728307270914,0.40438,2473.5,2473.4,4.4252]
[1728307272911,1.42525,2473.8,2473.4,4.0208]
[1728307273116,0.40436,2473.7,2473.6,0.40435]
[1728307273415,1.42525,2473.8,2473.4,5.03179]
[1728307273416,0.4144,2473.8,2473.7,0.40435]
[1728307273711,0.40431,2474.0,2473.9,0.4043]
[1728307274019,0.40428,2474.2,2474.1,0.40427]
[1728307274216,0.79806,2474.3,2474.2,0.40427]
[1728307274404,0.40428,2474.1,2474.0,7.60219]
[1728307274717,0.40427,2474.2,2474.1,0.40427]
[1728307275019,0.40428,2474.1,2474.0,3.6315]
[1728307275316,0.40428,2474.1,2473.9,0.40431]
[1728307275317,0.40432,2473.9,2473.8,0.3844]
[1728307275520,0.40435,2473.7,2473.6,3.2078]
[1728307275910,0.40435,2473.7,2473.6,3.61217]
[1728307276216,0.40435,2473.7,2473.6,3.2078]
[1728307276412,0.3938,2473.8,2473.6,3.2078]
[1728307276605,0.3938,2473.8,2473.7,0.40435]
[1728307276810,0.79813,2473.8,2473.7,0.40435]
[1728307277007,0.40435,2473.7,2473.6,3.61216]
[1728307277408,0.3938,2473.8,2473.6,3.2078]
[1728307277610,0.3938,2473.8,2473.6,3.61215]
[1728307277611,0.40435,2473.7,2473.6,3.61215]
[1728307277909,0.3938,2473.8,2473.6,3.2078]
[1728307278109,0.3938,2473.8,2473.6,3.61215]
[1728307278110,0.40435,2473.7,2473.6,3.61215]
[1728307282815,0.40435,2473.7,2473.6,3.2078]
[1728307284622,0.40435,2473.7,2473.6,3.61217]
[1728307286119,0.40435,2473.7,2473.6,3.2078]
[1728307287323,0.40435,2473.7,2473.6,3.61217]
[1728307287626,0.40435,2473.7,2473.6,3.2078]
[1728307287819,0.40435,2473.7,2473.6,3.61217]
[1728307288018,0.40435,2473.7,2473.6,3.2078]
[1728307288528,0.40435,2473.7,2473.4,0.40439]
[1728307288529,0.4044,2473.5,2473.4,0.40439]
[1728307289127,0.8079,2473.5,2473.4,0.40439]
[1728307289524,0.4044,2473.4,2473.3,1.5973]
[1728307291135,0.8079,2473.5,2473.4,0.4044]
[1728307294828,0.4044,2473.4,2473.3,1.5973]
[1728307295325,0.4035,2473.5,2473.3,1.1929]
[1728307295627,0.40439,2473.5,2473.4,0.4044]
[1728307295814,0.3837,2473.7,2473.3,1.1929]
[1728307296014,0.40438,2473.6,2473.5,0.40437]
[1728307297527,0.4044,2473.5,2473.4,0.40439]
[1728307301431,1.39458,2473.7,2473.3,1.1929]
[1728307301627,0.40439,2473.6,2473.5,0.40437]
[1728307302023,0.4044,2473.5,2473.4,0.40438]
[1728307307525,0.40439,2473.6,2473.3,1.1929]
[1728307307731,0.40439,2473.6,2473.5,0.40438]
[1728307308128,0.40437,2473.7,2473.6,0.40435]
[1728307308635,0.40437,2473.7,2473.6,0.79125]
[1728307312034,1.41455,2473.8,2473.6,0.3869]
[1728307312035,0.4037,2473.8,2473.6,0.3869]
[1728307312230,1.01078,2474.0,2473.7,0.8023]
[1728307312430,1.01078,2474.0,2473.8,0.40432]
[1728307312431,0.40433,2473.9,2473.8,0.40432]
[1728307312733,0.3906,2474.3,2474.2,0.40425]
[1728307312734,0.40427,2474.3,2474.2,0.40425]
[1728307312938,0.40427,2474.3,2474.0,0.4043]
[1728307312939,1.59401143,2474.4,2474.3,0.40423]
[1728307313133,0.80135,2474.4,2474.3,0.40423]
[1728307313432,0.40425,2474.3,2474.2,0.80226]
[1728307313938,0.3971,2474.4,2474.3,0.40425]
[1728307314136,0.80133,2474.4,2474.3,0.40425]
[1728307315634,0.3971,2474.4,2474.3,0.40425]
[1728307315836,0.80133,2474.4,2474.3,0.40425]
[1728307316540,0.3971,2474.4,2474.3,0.40425]
[1728307317440,0.80133,2474.4,2474.3,0.40425]
[1728307322441,4.56771,2474.4,2474.0,0.40429]
[1728307322740,1.80192303,2474.3,2473.9,1.0108]
[1728307322947,0.40428,2474.2,2474.1,0.40427]
[1728307323138,0.40426,2474.3,2473.9,0.8105]
[1728307323337,0.40426,2474.3,2474.2,0.40427]
[1728307324246,0.80133,2474.4,2474.3,0.40425]
[1728307325041,0.40418,2474.8,2474.7,0.40417]
[1728307327937,0.4114,2474.9,2474.6,0.7911]
[1728307328143,0.81557,2474.9,2474.8,0.40417]
[1728307328543,0.4114,2474.9,2474.8,0.40417]
[1728307328743,0.4114,2474.9,2474.8,3.61197]
[1728307329647,0.81555,2474.9,2474.8,3.61197]
[1728307331445,0.4114,2474.9,2474.8,3.61197]
[1728307331949,0.81555,2474.9,2474.8,3.61197]
[1728307332345,0.4114,2474.9,2474.8,3.61197]
[1728307335049,0.40412,2475.2,2475.1,0.40411]
[1728307335256,0.40412,2475.2,2474.8,3.61197]
[1728307335257,0.40413,2475.1,2475.0,0.40412]
[1728307335447,0.81701,2475.2,2475.1,0.40412]
[1728307335755,0.4129,2475.2,2475.1,0.40412]
[1728307335955,7.37797,2475.5,2475.1,3.2078]
[1728307335956,1.01019,2475.4,2475.1,3.2078]
[1728307336260,0.4041,2475.2,2475.1,4.00301]
[1728307336458,0.4041,2475.2,2475.1,3.61191]
[1728307336648,0.4041,2475.3,2475.2,0.40409]
[1728307337350,0.4041,2475.2,2475.1,3.2078]
[1728307338749,3.5641,2475.2,2475.1,3.2078]
[1728307338958,3.5641,2475.2,2474.9,0.40415]
[1728307338959,0.40414,2475.0,2474.9,0.40415]
[1728307340153,0.40415,2474.9,2474.8,3.61196]
[1728307341647,0.40415,2474.9,2474.8,3.61197]
[1728307342965,0.40415,2474.9,2474.8,4.03237]
[1728307343259,0.8167,2475.1,2474.8,3.6282]
[1728307343457,0.40415,2475.0,2474.9,0.40414]
[1728307343651,0.40415,2475.0,2474.9,0.79414]
[1728307343850,1.39277,2475.3,2475.0,0.40414]
[1728307343851,0.3825,2475.3,2475.0,0.40414]
[1728307344159,0.4144,2475.3,2475.2,0.4041]
[1728307344550,0.4144,2475.3,2475.2,0.8227]
[1728307344753,0.81849,2475.3,2475.2,0.8227]
[1728307345851,0.4144,2475.3,2475.1,3.6231]
[1728307346054,0.4041,2475.2,2475.1,4.02721]
[1728307346259,0.7898,2475.2,2475.1,4.02721]
[1728307346747,0.7898,2475.2,2475.1,0.81942]
[1728307346945,0.4041,2475.2,2475.1,0.81942]
[1728307347351,0.8185,2475.3,2475.2,0.4041]
[1728307350656,0.40408,2475.4,2475.1,3.6231]
[1728307350856,0.81128,2475.4,2475.3,0.40409]
[1728307352152,0.4041,2475.2,2475.1,3.2078]
[1728307352360,0.4041,2475.2,2474.9,0.40413]
[1728307352361,0.40415,2475.0,2474.9,0.40413]
[1728307352853,0.40414,2475.0,2474.9,0.80305]
[1728307353059,0.40414,2475.0,2474.9,0.3989]
[1728307353256,0.82804,2475.0,2474.9,0.3989]
[1728307353459,0.82804,2475.0,2474.9,0.80305]
[1728307353659,0.82804,2475.0,2474.9,0.3989]
[1728307353857,0.40415,2474.9,2474.8,3.2078]
[1728307354061,0.40415,2474.9,2474.6,1.2102]
[1728307354062,0.40419,2474.7,2474.6,1.2102]
[1728307354754,0.40419,2474.7,2474.6,0.4161]
[1728307355656,1.01051,2474.7,2474.3,0.7941]
[1728307355858,0.40422,2474.6,2474.5,0.8203]
[1728307356563,0.40422,2474.6,2474.5,4.0281]
[1728307357752,0.40418,2474.8,2474.7,0.40417]
[1728307358651,1.01043,2474.9,2474.5,3.6239]
[1728307358961,0.4042,2474.7,2474.6,0.40419]
[1728307362054,1.01039,2474.9,2474.5,3.6239]
[1728307362255,0.40419,2474.8,2474.7,0.40418]
[1728307362452,0.40417,2474.9,2474.8,0.40416]
[1728307364564,0.40417,2474.9,2474.8,3.61196]
[1728307366464,1.01034,2475.1,2475.0,0.40412]
[1728307366465,0.40413,2475.1,2475.0,0.40412]
[1728307366662,1.42748,2475.5,2475.0,3.16]
[1728307366855,0.4041,2475.3,2475.2,0.40409]
[1728307367060,0.4177,2475.4,2475.1,4.0437]
[1728307367265,0.82179,2475.4,2475.3,0.40409]
[1728307367963,0.4177,2475.4,2475.1,4.0437]
[1728307368167,0.40409,2475.3,2475.1,4.0437]
[1728307368362,0.4041,2475.2,2475.1,3.2078]
[1728307369667,0.4041,2475.2,2475.1,3.61192]
[1728307369871,0.4041,2475.2,2475.1,3.2078]
[1728307370079,0.4041,2475.2,2475.1,3.61192]
[1728307372665,0.4041,2475.3,2475.2,0.4041]
[1728307373373,0.4041,2475.2,2475.1,3.61191]
[1728307373569,0.4041,2475.3,2475.2,0.40409]
[1728307375671,0.40413,2475.1,2475.0,0.40412]
[1728307375868,2.47029,2475.2,2474.9,1.2015]
[1728307376072,2.25954,2475.0,2474.9,0.4131]
[1728307376783,0.40417,2474.9,2474.8,0.40416]
[1728307377370,2.64695994,2475.0,2474.8,0.40416]
[1728307377671,0.40415,2474.9,2474.8,0.40416]
[1728307380177,0.40417,2474.8,2474.7,1.2142]
[1728307380375,0.40422,2474.6,2474.5,0.40421]
[1728307380774,0.4106,2474.6,2474.5,0.40421]
[1728307380969,1.01037,2475.0,2474.5,0.40421]
[1728307380970,3.15,2475.2,2474.5,6.3578]
[1728307381274,0.40415,2475.0,2474.9,0.40414]
[1728307382667,4.44495,2475.0,2474.9,0.40414]
[1728307382874,1.19570908,2475.0,2474.9,0.40414]
[1728307383080,0.40415,2475.0,2474.9,0.40414]
[1728307383773,1.19566908,2475.2,2475.0,0.40414]
[1728307383973,0.40411,2475.2,2475.1,0.79182]
[1728307384581,0.4041,2475.3,2475.2,0.40409]
[1728307384885,0.79368,2475.4,2475.3,0.40409]
[1728307385880,0.3896,2475.4,2475.3,0.40409]
[1728307386073,0.79155908,2475.5,2475.3,1.41432]
[1728307386074,0.40406,2475.5,2475.3,1.41432]
[1728307386383,0.4041,2475.3,2475.2,0.40409]
[1728307387678,1.39983,2475.4,2475.1,3.5955]
[1728307387879,0.4041,2475.2,2475.1,3.99961]
[1728307388383,0.4041,2475.2,2475.1,3.5955]
[1728307390791,0.4041,2475.2,2475.1,3.99962]
[1728307391284,0.4041,2475.2,2475.1,3.5955]
[1728307391484,0.4041,2475.2,2475.1,3.99962]
[1728307392188,0.4041,2475.2,2475.1,3.5955]
[1728307392386,0.4041,2475.2,2475.1,3.99962]
[1728307392690,0.4041,2475.2,2475.1,3.5955]
[1728307393084,0.4041,2475.2,2475.1,3.99962]
[1728307396082,0.79369,2475.4,2475.3,0.40409]
[1728307396279,0.79369,2475.4,2475.1,3.5955]
[1728307396479,0.4041,2475.3,2475.2,0.40409]
[1728307397378,0.79369,2475.4,2475.3,0.40409]
[1728307397785,0.40409,2475.4,2475.3,0.40409]
[1728307406893,0.4041,2475.2,2475.1,3.99961]
[1728307408395,0.4041,2475.2,2475.1,0.79181]
[1728307410698,0.4041,2475.2,2475.1,0.79182]
[1728307411095,1.8641,2475.2,2475.1,0.3877]
[1728307411299,2.65605278,2475.2,2475.1,0.79182]
[1728307411794,1.8641,2475.2,2475.1,0.79182]
[1728307413797,0.4041,2475.2,2475.1,0.79182]
[1728307417804,0.4041,2475.3,2475.2,0.40409]
[1728307419206,0.4041,2475.3,2475.2,0.78979]
[1728307426514,0.40408,2475.4,2475.3,0.40407]
[1728307426717,0.40408,2475.4,2475.3,0.80357]
[1728307427019,0.40404,2475.6,2475.3,0.3995]
[1728307427214,0.40404,2475.6,2475.5,3.61185]
[1728307429407,1.1961007,2475.6,2475.5,3.61185]
[1728307431118,1.1961007,2475.6,2475.5,0.40405]
[1728307431713,0.40407,2475.5,2475.4,0.40406]
[1728307432020,1.86407,2475.5,2475.4,0.40406]
[1728307432219,2.6561307,2475.5,2475.4,0.40406]
[1728307434122,0.40407,2475.4,2475.3,4.01137]
[1728307434417,0.79807,2475.4,2475.3,4.01137]
[1728307434922,1.5901307,2475.4,2475.3,4.01137]
[1728307437017,0.79807,2475.4,2475.3,4.01137]
[1728307437423,0.79807,2475.4,2475.3,4.01139]
[1728307439015,0.79807,2475.4,2475.3,3.6073]
[1728307439220,0.79807,2475.4,2475.3,4.01139]
[1728307442328,0.79807,2475.4,2475.3,3.6073]
[1728307442637,0.40407,2475.4,2475.3,4.01139]
[1728307443428,0.81807,2475.5,2475.4,0.40407]
[1728307444131,1.61034708,2475.5,2475.4,0.40407]
[1728307444825,3.07034708,2475.5,2475.4,0.40407]
[1728307446926,2.66627708,2475.5,2475.4,0.40407]
[1728307447128,0.79227708,2475.5,2475.4,0.40407]
[1728307447436,0.40405,2475.6,2475.5,0.40404]
[1728307447630,0.79227708,2475.6,2475.5,1.46]
[1728307447830,0.79210249,2475.9,2475.8,0.40401]
[1728307448141,0.40395,2476.2,2475.8,5.07181]
[1728307448331,0.40398,2476.1,2476.0,0.40397]
[1728307448532,0.79608,2476.1,2476.0,0.40397]
[1728307448833,2.65604249,2476.3,2476.2,0.40394]
[1728307449033,1.86394,2476.3,2476.2,0.40394]
[1728307449535,2.65604249,2476.3,2476.2,0.40394]
[1728307450030,2.25210249,2476.3,2476.2,0.40394]
[1728307450235,1.46,2476.3,2476.2,0.40394]
[1728307450624,1.86392,2476.3,2476.2,0.40394]
[1728307451634,1.18420249,2476.4,2476.2,1.46]
[1728307451826,0.79601,2476.4,2476.3,0.40392]
[1728307452027,1.19597249,2476.7,2476.6,0.40388]
[1728307452236,0.79375,2476.8,2476.7,0.40386]
[1728307452640,0.79375,2476.8,2476.7,0.81896]
[1728307453133,4.21734,2477.0,2476.7,0.81896]
[1728307453330,3.61163,2477.0,2476.9,0.40383]
[1728307453529,0.40383,2476.9,2476.8,0.82164]
[1728307453731,1.86383,2476.9,2476.8,0.82164]
[1728307454541,3.2078,2477.0,2476.9,0.40383]
[1728307455637,3.61161,2477.0,2476.9,0.40383]
[1728307456735,0.40381,2477.0,2476.9,0.40383]
[1728307457144,1.2072,2477.1,2476.8,0.4178]
[1728307457349,0.79369,2477.1,2477.0,0.40381]
[1728307457641,0.40381,2477.0,2476.9,3.61162]
[1728307458240,0.79371,2477.1,2477.0,0.40381]
[1728307459142,0.79371,2477.1,2476.9,3.2078]
[1728307459143,0.40381,2477.0,2476.9,3.2078]
[1728307459338,0.40383,2476.9,2476.8,0.82164]
[1728307459739,8.1972,2476.9,2476.5,3.3018]
[1728307459946,3.15,2476.6,2476.3,0.094]
[1728307460149,0.40386,2476.7,2476.3,1.00981]
[1728307460340,0.4102,2476.7,2476.6,0.40388]
[1728307460742,0.81406,2476.7,2476.6,0.40388]
[1728307462441,0.81406,2476.7,2476.6,0.81498]